[Event "7th Paul Keres Memorial Festival 2026 Rapid"]
[Site "ESTONIA Resort Hotel & Spa conference center, EE"]
[Date "2026.08.02"]
[Round "4"]
[White "Jakubowski, Krzysztof"]
[Black "Laurusas, Tomas"]
[Result "0-1"]
[Board "2"]
[TimeControl "12+3"]
[WhiteFideId "1112848"]
[BlackFideId "12803731"]
[WhiteElo "2365"]
[BlackElo "2462"]
[WhiteTitle "GM"]
[BlackTitle "GM"]
[WhiteClock "0:00:20"]
[BlackClock "0:04:03"]
[Variant "Standard"]
[EndDate "2026.08.02"]
[EndTime "09:47:19"]

1. e4 {[%clk 0:12:05]}  c6 {[%clk 0:11:33]} 2. d4 {[%clk 0:11:53]}  d5 {[%clk 0:11:33]} 3. e5 {[%clk 0:11:54]}  Bf5 {[%clk 0:11:35]}
4. Nc3 {[%clk 0:11:55]}  e6 {[%clk 0:11:35]} 5. g4 {[%clk 0:11:56]}  Bg6 {[%clk 0:11:36]} 6. Nge2 {[%clk 0:11:56]}  c5 {[%clk 0:11:25]}
7. h4 {[%clk 0:11:53]}  cxd4 {[%clk 0:11:06]} 8. Nxd4 {[%clk 0:11:29]}  h5 {[%clk 0:11:06]} 9. Bg5 {[%clk 0:10:48]}  Be7 {[%clk 0:10:19]}
10. Ncb5 {[%clk 0:09:54]}  hxg4 {[%clk 0:09:31]} 11. Nd6+ {[%clk 0:07:43]}  Kf8 {[%clk 0:09:32]} 12. f4 {[%clk 0:05:35]}  Nc6 {[%clk 0:09:00]}
13. Nxc6 {[%clk 0:02:48]}  bxc6 {[%clk 0:09:02]} 14. Qxg4 {[%clk 0:02:46]}  Qa5+ {[%clk 0:08:59]} 15. c3 {[%clk 0:02:44]}  Bxd6 {[%clk 0:08:59]}
16. exd6 {[%clk 0:02:45]}  f6 {[%clk 0:08:58]} 17. Bxf6 {[%clk 0:02:41]}  Nxf6 {[%clk 0:08:36]} 18. Qxg6 {[%clk 0:02:42]}  Rb8 {[%clk 0:08:14]}
19. Rg1 {[%clk 0:02:36]}  Rb7 {[%clk 0:07:46]} 20. Bd3 {[%clk 0:02:09]}  Qb6 {[%clk 0:07:38]} 21. Rg2 {[%clk 0:01:47]}  Qe3+ {[%clk 0:07:33]}
22. Re2 {[%clk 0:01:48]}  Qxf4 {[%clk 0:07:35]} 23. Rf2 {[%clk 0:01:42]}  Qxh4 {[%clk 0:07:19]} 24. b4 {[%clk 0:00:43]}  Rh5 {[%clk 0:04:07]}
25. Be2 {[%clk 0:00:20]}  Rf5 {[%clk 0:04:03]} 0-1

[Event "7th Paul Keres Memorial Festival 2026 Rapid"]
[Site "ESTONIA Resort Hotel & Spa conference center, EE"]
[Date "2026.08.02"]
[Round "4"]
[White "Keinanen, Toivo"]
[Black "Maltsevskaya, Aleksandra"]
[Result "1-0"]
[Board "3"]
[TimeControl "12+3"]
[WhiteFideId "509825"]
[BlackFideId "24174041"]
[WhiteElo "2585"]
[BlackElo "2369"]
[WhiteTitle "IM"]
[BlackTitle "IM"]
[WhiteClock "0:02:14"]
[BlackClock "0:01:40"]
[Variant "Standard"]
[EndDate "2026.08.02"]
[EndTime "09:47:37"]

1. d4 {[%clk 0:12:05]}  Nf6 {[%clk 0:12:04]} 2. Nf3 {[%clk 0:12:07]}  e6 {[%clk 0:12:05]} 3. e3 {[%clk 0:12:09]}  b6 {[%clk 0:12:00]}
4. Bd3 {[%clk 0:12:10]}  Bb7 {[%clk 0:12:02]} 5. O-O {[%clk 0:12:11]}  Be7 {[%clk 0:12:02]} 6. c4 {[%clk 0:12:11]}  c5 {[%clk 0:12:02]}
7. Nc3 {[%clk 0:12:11]}  cxd4 {[%clk 0:12:03]} 8. exd4 {[%clk 0:12:13]}  d5 {[%clk 0:11:53]} 9. cxd5 {[%clk 0:12:14]}  Nxd5 {[%clk 0:11:53]}
10. Ne5 {[%clk 0:12:16]}  O-O {[%clk 0:11:06]} 11. Qg4 {[%clk 0:12:18]}  f5 {[%clk 0:11:02]} 12. Qe2 {[%clk 0:11:11]}  Bf6 {[%clk 0:10:38]}
13. Bc4 {[%clk 0:10:51]}  Nd7 {[%clk 0:10:22]} 14. Nc6 {[%clk 0:09:14]}  Bxc6 {[%clk 0:09:43]} 15. Qxe6+ {[%clk 0:09:15]}  Kh8 {[%clk 0:09:44]}
16. Qxc6 {[%clk 0:07:23]}  Ne7 {[%clk 0:07:42]} 17. Qd6 {[%clk 0:06:58]}  Rc8 {[%clk 0:07:34]} 18. Be6 {[%clk 0:06:36]}  Nb8 {[%clk 0:06:54]}
19. Qg3 {[%clk 0:06:23]}  Rc6 {[%clk 0:06:30]} 20. d5 {[%clk 0:06:24]}  Rc5 {[%clk 0:06:32]} 21. Be3 {[%clk 0:05:34]}  f4 {[%clk 0:05:01]}
22. Bxf4 {[%clk 0:05:26]}  Bxc3 {[%clk 0:05:01]} 23. bxc3 {[%clk 0:05:24]}  Nxd5 {[%clk 0:05:02]} 24. Be5 {[%clk 0:04:28]}  Nf6 {[%clk 0:05:03]}
25. Rfe1 {[%clk 0:04:10]}  Nc6 {[%clk 0:03:32]} 26. Bd6 {[%clk 0:03:03]}  Nh5 {[%clk 0:03:32]} 27. Bxf8 {[%clk 0:02:52]}  Nxg3 {[%clk 0:03:31]}
28. Bxc5 {[%clk 0:02:54]}  bxc5 {[%clk 0:02:13]} 29. Bf7 {[%clk 0:02:21]}  Ne7 {[%clk 0:02:15]} 30. hxg3 {[%clk 0:02:23]}  g6 {[%clk 0:01:49]}
31. Rad1 {[%clk 0:02:23]}  Qf8 {[%clk 0:01:40]} 32. Rd7 {[%clk 0:02:14]} 1-0

[Event "7th Paul Keres Memorial Festival 2026 Rapid"]
[Site "ESTONIA Resort Hotel & Spa conference center, EE"]
[Date "2026.08.02"]
[Round "4"]
[White "Dubrovin, Robert"]
[Black "Kazakouski, Valery"]
[Result "0-1"]
[Board "4"]
[TimeControl "12+3"]
[WhiteFideId "4501829"]
[BlackFideId "13507443"]
[WhiteElo "2268"]
[BlackElo "2528"]
[BlackTitle "GM"]
[WhiteClock "0:00:04"]
[BlackClock "0:00:55"]
[Variant "Standard"]
[EndDate "2026.08.02"]
[EndTime "09:51:53"]

1. d4 {[%clk 0:12:03]}  Nf6 {[%clk 0:12:05]} 2. c4 {[%clk 0:12:05]}  e6 {[%clk 0:12:06]} 3. Nc3 {[%clk 0:12:06]}  Bb4 {[%clk 0:12:08]}
4. e3 {[%clk 0:12:07]}  b6 {[%clk 0:12:09]} 5. Bd3 {[%clk 0:12:07]}  Bb7 {[%clk 0:12:11]} 6. Nf3 {[%clk 0:12:08]}  O-O {[%clk 0:12:09]}
7. O-O {[%clk 0:12:06]}  Bxc3 {[%clk 0:12:10]} 8. bxc3 {[%clk 0:12:08]}  c5 {[%clk 0:12:11]} 9. Nd2 {[%clk 0:11:49]}  Nc6 {[%clk 0:12:08]}
10. Nb3 {[%clk 0:11:29]}  d6 {[%clk 0:12:00]} 11. e4 {[%clk 0:11:21]}  e5 {[%clk 0:11:46]} 12. d5 {[%clk 0:10:25]}  Ne7 {[%clk 0:11:47]}
13. g3 {[%clk 0:10:22]}  Ne8 {[%clk 0:11:09]} 14. f4 {[%clk 0:10:01]}  exf4 {[%clk 0:09:13]} 15. gxf4 {[%clk 0:09:56]}  f5 {[%clk 0:09:15]}
16. Nd2 {[%clk 0:07:31]}  fxe4 {[%clk 0:09:07]} 17. Nxe4 {[%clk 0:07:29]}  h6 {[%clk 0:09:07]} 18. Ng3 {[%clk 0:06:52]}  Nf6 {[%clk 0:08:52]}
19. Qe2 {[%clk 0:06:31]}  Qd7 {[%clk 0:08:32]} 20. f5 {[%clk 0:06:30]}  b5 {[%clk 0:07:36]} 21. cxb5 {[%clk 0:05:27]}  Nexd5 {[%clk 0:07:33]}
22. Qe6+ {[%clk 0:04:46]}  Qxe6 {[%clk 0:06:19]} 23. fxe6 {[%clk 0:04:48]}  Rae8 {[%clk 0:06:20]} 24. c4 {[%clk 0:04:06]}  Nc7 {[%clk 0:06:12]}
25. Nf5 {[%clk 0:03:43]}  Rxe6 {[%clk 0:05:38]} 26. Bb2 {[%clk 0:03:36]}  Ne4 {[%clk 0:04:55]} 27. h4 {[%clk 0:03:15]}  Nd2 {[%clk 0:03:22]}
28. Rf4 {[%clk 0:03:13]}  Rg6+ {[%clk 0:02:28]} 29. Kh2 {[%clk 0:02:14]}  Re8 {[%clk 0:01:41]} 30. Ne7+ {[%clk 0:01:31]}  Rxe7 {[%clk 0:01:43]}
31. Bxg6 {[%clk 0:01:33]}  Re2+ {[%clk 0:01:45]} 32. Kh3 {[%clk 0:01:22]}  Re3+ {[%clk 0:01:47]} 33. Kh2 {[%clk 0:00:42]}  Nf3+ {[%clk 0:01:17]}
34. Kg3 {[%clk 0:00:38]}  Nd4+ {[%clk 0:01:00]} 35. Kg4 {[%clk 0:00:21]}  Bc8+ {[%clk 0:00:55]} 36. Bf5 {[%clk 0:00:05]}  Nxf5 {[%clk 0:00:54]}
37. Rd1 {[%clk 0:00:04]}  Rg3+ {[%clk 0:00:55]} 0-1

[Event "7th Paul Keres Memorial Festival 2026 Rapid"]
[Site "ESTONIA Resort Hotel & Spa conference center, EE"]
[Date "2026.08.02"]
[Round "4"]
[White "Harikrishnan.A.Ra"]
[Black "Beniosev, Daniel"]
[Result "1-0"]
[Board "5"]
[TimeControl "12+3"]
[WhiteFideId "5081483"]
[BlackFideId "11632674"]
[WhiteElo "2404"]
[BlackElo "2223"]
[WhiteTitle "GM"]
[BlackTitle "CM"]
[WhiteClock "0:03:23"]
[BlackClock "0:05:00"]
[Variant "Standard"]
[EndDate "2026.08.02"]
[EndTime "09:43:09"]

1. d4 {[%clk 0:12:04]}  Nf6 {[%clk 0:12:02]} 2. Bf4 {[%clk 0:12:00]}  d5 {[%clk 0:11:57]} 3. e3 {[%clk 0:11:58]}  c5 {[%clk 0:11:54]}
4. c3 {[%clk 0:11:59]}  Nc6 {[%clk 0:11:53]} 5. Nd2 {[%clk 0:12:01]}  cxd4 {[%clk 0:11:47]} 6. exd4 {[%clk 0:12:02]}  Bf5 {[%clk 0:11:48]}
7. Ngf3 {[%clk 0:12:00]}  e6 {[%clk 0:11:47]} 8. Bb5 {[%clk 0:12:01]}  a6 {[%clk 0:10:48]} 9. Bxc6+ {[%clk 0:12:02]}  bxc6 {[%clk 0:10:49]}
10. Ne5 {[%clk 0:11:47]}  Qb6 {[%clk 0:10:50]} 11. Qb3 {[%clk 0:11:43]}  Qb5 {[%clk 0:09:44]} 12. a4 {[%clk 0:09:41]}  Qxb3 {[%clk 0:09:20]}
13. Nxb3 {[%clk 0:09:42]}  Rc8 {[%clk 0:09:13]} 14. Nc5 {[%clk 0:09:10]}  Bxc5 {[%clk 0:08:38]} 15. dxc5 {[%clk 0:09:12]}  Ne4 {[%clk 0:08:39]}
16. g4 {[%clk 0:08:17]}  Bg6 {[%clk 0:08:39]} 17. Be3 {[%clk 0:08:09]}  f6 {[%clk 0:07:20]} 18. Nxg6 {[%clk 0:08:06]}  hxg6 {[%clk 0:07:22]}
19. f3 {[%clk 0:08:06]}  Ng5 {[%clk 0:07:22]} 20. Kf2 {[%clk 0:07:39]}  Nh3+ {[%clk 0:06:56]} 21. Kg2 {[%clk 0:06:48]}  g5 {[%clk 0:06:51]}
22. b4 {[%clk 0:06:30]}  Nf4+ {[%clk 0:06:27]} 23. Kf2 {[%clk 0:06:08]}  e5 {[%clk 0:06:03]} 24. Bxf4 {[%clk 0:05:07]}  gxf4 {[%clk 0:05:44]}
25. h4 {[%clk 0:05:08]}  Kf7 {[%clk 0:05:36]} 26. h5 {[%clk 0:04:59]}  g6 {[%clk 0:05:27]} 27. Rh2 {[%clk 0:04:02]}  gxh5 {[%clk 0:05:25]}
28. Rxh5 {[%clk 0:03:57]}  Rxh5 {[%clk 0:05:17]} 29. gxh5 {[%clk 0:03:59]}  Rh8 {[%clk 0:05:19]} 30. Rh1 {[%clk 0:03:46]}  f5 {[%clk 0:05:06]}
31. h6 {[%clk 0:03:45]}  Kg6 {[%clk 0:05:08]} 32. h7 {[%clk 0:03:41]}  e4 {[%clk 0:05:00]} 33. b5 {[%clk 0:03:23]} 1-0

[Event "7th Paul Keres Memorial Festival 2026 Rapid"]
[Site "ESTONIA Resort Hotel & Spa conference center, EE"]
[Date "2026.08.02"]
[Round "4"]
[White "Mucenieks, Marks"]
[Black "Lagarde, Maxime"]
[Result "0-1"]
[Board "6"]
[TimeControl "12+3"]
[WhiteFideId "11622660"]
[BlackFideId "662399"]
[WhiteElo "1925"]
[BlackElo "2599"]
[BlackTitle "GM"]
[WhiteClock "0:00:06"]
[BlackClock "0:04:04"]
[Variant "Standard"]
[EndDate "2026.08.02"]
[EndTime "09:47:39"]

1. d4 {[%clk 0:12:03]}  f5 {[%clk 0:12:05]} 2. Nf3 {[%clk 0:12:02]}  Nf6 {[%clk 0:12:07]} 3. g3 {[%clk 0:11:51]}  g6 {[%clk 0:12:09]}
4. Bg2 {[%clk 0:11:53]}  Bg7 {[%clk 0:12:11]} 5. O-O {[%clk 0:11:53]}  O-O {[%clk 0:12:12]} 6. b4 {[%clk 0:11:52]}  Nc6 {[%clk 0:12:11]}
7. a3 {[%clk 0:10:18]}  d6 {[%clk 0:12:10]} 8. Bb2 {[%clk 0:10:15]}  e6 {[%clk 0:11:17]} 9. Nbd2 {[%clk 0:10:10]}  h6 {[%clk 0:11:03]}
10. Re1 {[%clk 0:09:57]}  Ne4 {[%clk 0:07:51]} 11. c4 {[%clk 0:08:53]}  g5 {[%clk 0:07:35]} 12. Qc2 {[%clk 0:08:29]}  Nxd2 {[%clk 0:07:22]}
13. Qxd2 {[%clk 0:08:27]}  g4 {[%clk 0:07:02]} 14. Nh4 {[%clk 0:08:20]}  Qg5 {[%clk 0:07:00]} 15. e3 {[%clk 0:07:26]}  Bf6 {[%clk 0:06:53]}
16. d5 {[%clk 0:04:24]}  Ne5 {[%clk 0:06:55]} 17. f4 {[%clk 0:04:11]}  gxf3 {[%clk 0:06:56]} 18. Nxf3 {[%clk 0:04:10]}  Nxf3+ {[%clk 0:06:57]}
19. Bxf3 {[%clk 0:04:09]}  Bxb2 {[%clk 0:06:55]} 20. Qxb2 {[%clk 0:04:08]}  e5 {[%clk 0:06:56]} 21. c5 {[%clk 0:03:24]}  f4 {[%clk 0:06:45]}
22. exf4 {[%clk 0:03:04]}  Rxf4 {[%clk 0:06:45]} 23. Bg2 {[%clk 0:03:01]}  Rf7 {[%clk 0:06:43]} 24. Rf1 {[%clk 0:02:54]}  Bf5 {[%clk 0:06:43]}
25. Qe2 {[%clk 0:02:20]}  Raf8 {[%clk 0:06:41]} 26. Be4 {[%clk 0:01:25]}  Bh3 {[%clk 0:06:35]} 27. Bg2 {[%clk 0:00:44]}  Bg4 {[%clk 0:06:34]}
28. Qe4 {[%clk 0:00:36]}  Bf5 {[%clk 0:06:29]} 29. Qe2 {[%clk 0:00:35]}  h5 {[%clk 0:06:21]} 30. Be4 {[%clk 0:00:25]}  Bh3 {[%clk 0:06:22]}
31. Bg2 {[%clk 0:00:27]}  Bg4 {[%clk 0:06:24]} 32. Qe4 {[%clk 0:00:23]}  Bf5 {[%clk 0:06:24]} 33. Qe2 {[%clk 0:00:21]}  h4 {[%clk 0:06:18]}
34. gxh4 {[%clk 0:00:21]}  Qxh4 {[%clk 0:06:19]} 35. Kh1 {[%clk 0:00:20]}  Rh7 {[%clk 0:05:13]} 36. Bf3 {[%clk 0:00:21]}  Bd3 {[%clk 0:04:53]}
37. Rg1+ {[%clk 0:00:18]}  Kh8 {[%clk 0:04:55]} 38. Qg2 {[%clk 0:00:10]}  e4 {[%clk 0:04:20]} 39. Be2 {[%clk 0:00:12]}  Bxe2 {[%clk 0:04:07]}
40. Qxe2 {[%clk 0:00:07]}  Rf2 {[%clk 0:04:09]} 41. Qxf2 {[%clk 0:00:04]}  Qxf2 {[%clk 0:04:10]} 42. Rg2 {[%clk 0:00:06]}  Qf3 {[%clk 0:04:04]} 0-1

[Event "7th Paul Keres Memorial Festival 2026 Rapid"]
[Site "ESTONIA Resort Hotel & Spa conference center, EE"]
[Date "2026.08.02"]
[Round "4"]
[White "Fridman, Daniel"]
[Black "Kavalnis, Rytis"]
[Result "1-0"]
[Board "7"]
[TimeControl "12+3"]
[WhiteFideId "11600454"]
[BlackFideId "12841870"]
[WhiteElo "2555"]
[BlackElo "2092"]
[WhiteTitle "GM"]
[WhiteClock "0:00:20"]
[BlackClock "0:00:04"]
[Variant "Standard"]
[EndDate "2026.08.02"]
[EndTime "09:54:54"]

1. d4 {[%clk 0:12:04]}  d5 {[%clk 0:12:02]} 2. Nf3 {[%clk 0:12:04]}  Nf6 {[%clk 0:11:53]} 3. c4 {[%clk 0:12:04]}  e6 {[%clk 0:11:48]}
4. g3 {[%clk 0:11:57]}  Be7 {[%clk 0:12:10]} 5. Bg2 {[%clk 0:12:07]}  O-O {[%clk 0:12:11]} 6. Nc3 {[%clk 0:12:09]}  c6 {[%clk 0:11:59]}
7. O-O {[%clk 0:12:08]}  b6 {[%clk 0:11:43]} 8. b3 {[%clk 0:12:07]}  Bb7 {[%clk 0:11:44]} 9. Qc2 {[%clk 0:12:07]}  Nbd7 {[%clk 0:11:40]}
10. Rd1 {[%clk 0:12:08]}  a5 {[%clk 0:11:33]} 11. e4 {[%clk 0:12:08]}  Rc8 {[%clk 0:11:31]} 12. h4 {[%clk 0:11:15]}  Ba6 {[%clk 0:10:27]}
13. e5 {[%clk 0:10:28]}  Ne8 {[%clk 0:10:07]} 14. Ng5 {[%clk 0:10:48]}  g6 {[%clk 0:09:46]} 15. cxd5 {[%clk 0:10:35]}  cxd5 {[%clk 0:09:46]}
16. Qd2 {[%clk 0:10:25]}  Ng7 {[%clk 0:09:26]} 17. Nf3 {[%clk 0:10:02]}  Nf5 {[%clk 0:09:02]} 18. Bb2 {[%clk 0:09:17]}  Rc6 {[%clk 0:08:06]}
19. Bf1 {[%clk 0:09:02]}  Bxf1 {[%clk 0:08:00]} 20. Rxf1 {[%clk 0:09:02]}  Qc7 {[%clk 0:06:59]} 21. Nb5 {[%clk 0:09:00]}  Qb7 {[%clk 0:07:02]}
22. Rac1 {[%clk 0:06:56]}  Rfc8 {[%clk 0:06:52]} 23. Rxc6 {[%clk 0:06:57]}  Rxc6 {[%clk 0:06:50]} 24. Kg2 {[%clk 0:06:57]}  h5 {[%clk 0:06:48]}
25. a4 {[%clk 0:05:17]}  Nb8 {[%clk 0:06:28]} 26. Ne1 {[%clk 0:05:01]}  Na6 {[%clk 0:06:15]} 27. Nc2 {[%clk 0:05:00]}  Nb4 {[%clk 0:06:13]}
28. Nxb4 {[%clk 0:04:56]}  Bxb4 {[%clk 0:06:14]} 29. Qd3 {[%clk 0:04:48]}  Qe7 {[%clk 0:04:46]} 30. Bc1 {[%clk 0:04:44]}  Qd7 {[%clk 0:04:01]}
31. Bg5 {[%clk 0:04:36]}  Be7 {[%clk 0:04:01]} 32. Bf4 {[%clk 0:04:34]}  Bb4 {[%clk 0:03:10]} 33. Rh1 {[%clk 0:04:28]}  Be7 {[%clk 0:03:02]}
34. Bd2 {[%clk 0:04:28]}  Qb7 {[%clk 0:02:00]} 35. Kf1 {[%clk 0:04:04]}  Rc8 {[%clk 0:01:35]} 36. Ke2 {[%clk 0:04:05]}  Qd7 {[%clk 0:01:22]}
37. Rb1 {[%clk 0:03:28]}  Bb4 {[%clk 0:01:11]} 38. Bxb4 {[%clk 0:03:15]}  axb4 {[%clk 0:01:13]} 39. Qd2 {[%clk 0:03:16]}  Qc6 {[%clk 0:01:09]}
40. Kd1 {[%clk 0:03:03]}  Qd7 {[%clk 0:00:27]} 41. Qxb4 {[%clk 0:03:00]}  Nh6 {[%clk 0:00:27]} 42. Qd2 {[%clk 0:02:59]}  Nf5 {[%clk 0:00:15]}
43. Rc1 {[%clk 0:02:58]}  f6 {[%clk 0:00:15]} 44. Rxc8+ {[%clk 0:02:38]}  Qxc8 {[%clk 0:00:15]} 45. exf6 {[%clk 0:02:17]}  Qd8 {[%clk 0:00:06]}
46. Qg5 {[%clk 0:01:55]}  Kf7 {[%clk 0:00:08]} 47. Kd2 {[%clk 0:01:51]}  Nd6 {[%clk 0:00:10]} 48. Nc3 {[%clk 0:01:19]}  b5 {[%clk 0:00:10]}
49. Qh6 {[%clk 0:00:16]}  Qxf6 {[%clk 0:00:06]} 50. Qe3 {[%clk 0:00:13]}  bxa4 {[%clk 0:00:07]} 51. Nxa4 {[%clk 0:00:15]}  Ke7 {[%clk 0:00:06]}
52. Nc5 {[%clk 0:00:16]}  Qf5 {[%clk 0:00:07]} 53. Ke2 {[%clk 0:00:15]}  Qc2+ {[%clk 0:00:09]} 54. Kf1 {[%clk 0:00:17]}  Qb1+ {[%clk 0:00:04]}
55. Kg2 {[%clk 0:00:18]}  Qf5 {[%clk 0:00:05]} 56. Qh6 {[%clk 0:00:16]}  Qf7 {[%clk 0:00:05]} 57. Qg5+ {[%clk 0:00:18]}  Qf6 {[%clk 0:00:05]}
58. b4 {[%clk 0:00:18]}  Nb5 {[%clk 0:00:05]} 59. Nb3 {[%clk 0:00:13]}  Qxg5 {[%clk 0:00:06]} 60. hxg5 {[%clk 0:00:10]}  Kd6 {[%clk 0:00:07]}
61. f4 {[%clk 0:00:13]}  Na3 {[%clk 0:00:06]} 62. Kf2 {[%clk 0:00:13]}  Nc2 {[%clk 0:00:05]} 63. b5 {[%clk 0:00:14]}  Na3 {[%clk 0:00:05]}
64. b6 {[%clk 0:00:16]}  Kc6 {[%clk 0:00:04]} 65. Nc5 {[%clk 0:00:18]}  Kxb6 {[%clk 0:00:05]} 66. Nxe6 {[%clk 0:00:20]}  Kc6 {[%clk 0:00:06]}
67. Nf8 {[%clk 0:00:22]}  Nc2 {[%clk 0:00:07]} 68. Nxg6 {[%clk 0:00:23]}  Kd6 {[%clk 0:00:07]} 69. f5 {[%clk 0:00:15]}  Nxd4 {[%clk 0:00:09]}
70. f6 {[%clk 0:00:17]}  Ke6 {[%clk 0:00:09]} 71. Nf4+ {[%clk 0:00:19]}  Kf7 {[%clk 0:00:11]} 72. g4 {[%clk 0:00:11]}  hxg4 {[%clk 0:00:07]}
73. Kg3 {[%clk 0:00:13]}  Nc6 {[%clk 0:00:04]} 74. Kxg4 {[%clk 0:00:14]}  d4 {[%clk 0:00:06]} 75. Kf5 {[%clk 0:00:16]}  d3 {[%clk 0:00:05]}
76. g6+ {[%clk 0:00:18]}  Kg8 {[%clk 0:00:04]} 77. f7+ {[%clk 0:00:20]} 1-0

[Event "7th Paul Keres Memorial Festival 2026 Rapid"]
[Site "ESTONIA Resort Hotel & Spa conference center, EE"]
[Date "2026.08.02"]
[Round "4"]
[White "Krivonosov, Oleg"]
[Black "Povilaitis, Tomas"]
[Result "1/2-1/2"]
[Board "8"]
[TimeControl "12+3"]
[WhiteFideId "11600349"]
[BlackFideId "12811700"]
[WhiteElo "2358"]
[BlackElo "2154"]
[WhiteTitle "IM"]
[WhiteClock "0:11:49"]
[BlackClock "0:08:35"]
[Variant "Standard"]
[EndDate "2026.08.02"]
[EndTime "09:29:15"]

1. Nf3 {[%clk 0:12:04]}  d5 {[%clk 0:12:00]} 2. d4 {[%clk 0:12:05]}  Nf6 {[%clk 0:11:59]} 3. c4 {[%clk 0:12:06]}  e6 {[%clk 0:12:02]}
4. g3 {[%clk 0:12:08]}  Be7 {[%clk 0:12:04]} 5. Bg2 {[%clk 0:12:10]}  O-O {[%clk 0:12:06]} 6. O-O {[%clk 0:12:11]}  dxc4 {[%clk 0:12:04]}
7. Qa4 {[%clk 0:12:13]}  a6 {[%clk 0:12:10]} 8. Qxc4 {[%clk 0:12:14]}  b5 {[%clk 0:12:12]} 9. Qc2 {[%clk 0:12:16]}  Bb7 {[%clk 0:12:14]}
10. Bg5 {[%clk 0:12:17]}  Be4 {[%clk 0:10:36]} 11. Qd2 {[%clk 0:12:15]}  Nbd7 {[%clk 0:10:14]} 12. Nc3 {[%clk 0:12:13]}  Bb7 {[%clk 0:10:10]}
13. Rfd1 {[%clk 0:12:03]}  h6 {[%clk 0:10:05]} 14. Bxf6 {[%clk 0:12:02]}  Nxf6 {[%clk 0:10:06]} 15. Rac1 {[%clk 0:11:57]}  c5 {[%clk 0:08:42]}
16. dxc5 {[%clk 0:11:53]}  Bxc5 {[%clk 0:08:44]} 17. Qxd8 {[%clk 0:11:50]}  Rfxd8 {[%clk 0:08:46]} 18. Ne5 {[%clk 0:11:49]}  Bxg2 {[%clk 0:08:35]} 1/2-1/2

[Event "7th Paul Keres Memorial Festival 2026 Rapid"]
[Site "ESTONIA Resort Hotel & Spa conference center, EE"]
[Date "2026.08.02"]
[Round "4"]
[White "Platonovs, Nikolajs"]
[Black "Shishkov, Andrei"]
[Result "1-0"]
[Board "9"]
[TimeControl "12+3"]
[WhiteFideId "11622598"]
[BlackFideId "4500563"]
[WhiteElo "2188"]
[BlackElo "2288"]
[WhiteTitle "CM"]
[BlackTitle "IM"]
[WhiteClock "0:00:10"]
[BlackClock "0:00:15"]
[Variant "Standard"]
[EndDate "2026.08.02"]
[EndTime "09:55:13"]

1. e4 {[%clk 0:12:05]}  c6 {[%clk 0:12:05]} 2. d4 {[%clk 0:12:07]}  d5 {[%clk 0:12:08]} 3. Nc3 {[%clk 0:12:10]}  dxe4 {[%clk 0:12:09]}
4. Nxe4 {[%clk 0:12:11]}  Bf5 {[%clk 0:12:08]} 5. Ng3 {[%clk 0:12:13]}  Bg6 {[%clk 0:12:10]} 6. N1e2 {[%clk 0:12:15]}  Nd7 {[%clk 0:12:08]}
7. Nf4 {[%clk 0:12:11]}  e5 {[%clk 0:12:06]} 8. Nxg6 {[%clk 0:11:58]}  hxg6 {[%clk 0:12:08]} 9. dxe5 {[%clk 0:11:46]}  Qa5+ {[%clk 0:12:04]}
10. c3 {[%clk 0:11:48]}  Qxe5+ {[%clk 0:11:51]} 11. Qe2 {[%clk 0:11:48]}  O-O-O {[%clk 0:11:27]} 12. Qxe5 {[%clk 0:11:20]}  Nxe5 {[%clk 0:11:29]}
13. Be2 {[%clk 0:10:52]}  f5 {[%clk 0:11:09]} 14. O-O {[%clk 0:10:21]}  Nf6 {[%clk 0:11:10]} 15. Rd1 {[%clk 0:09:36]}  Bd6 {[%clk 0:10:43]}
16. Bg5 {[%clk 0:08:19]}  Rhe8 {[%clk 0:10:36]} 17. Re1 {[%clk 0:07:45]}  Nf7 {[%clk 0:09:39]} 18. Bxf6 {[%clk 0:07:25]}  gxf6 {[%clk 0:09:41]}
19. Bf1 {[%clk 0:07:10]}  Ne5 {[%clk 0:09:27]} 20. Rad1 {[%clk 0:07:10]}  Bc5 {[%clk 0:09:24]} 21. h3 {[%clk 0:06:36]}  a5 {[%clk 0:09:15]}
22. Be2 {[%clk 0:06:11]}  Kc7 {[%clk 0:08:03]} 23. Nf1 {[%clk 0:05:40]}  Rd7 {[%clk 0:07:47]} 24. Rd3 {[%clk 0:05:40]}  Rxd3 {[%clk 0:07:47]}
25. Rd1 {[%clk 0:05:33]}  Nf7 {[%clk 0:07:47]} 26. Bxd3 {[%clk 0:05:03]}  Ne5 {[%clk 0:06:45]} 27. Be2 {[%clk 0:05:03]}  Nf7 {[%clk 0:05:35]}
28. Bd3 {[%clk 0:05:01]}  b5 {[%clk 0:05:31]} 29. Nd2 {[%clk 0:04:59]}  Nd6 {[%clk 0:05:10]} 30. Kf1 {[%clk 0:04:28]}  Rd8 {[%clk 0:04:45]}
31. Ke2 {[%clk 0:04:09]}  g5 {[%clk 0:04:25]} 32. Nf3 {[%clk 0:03:21]}  Re8+ {[%clk 0:02:29]} 33. Kf1 {[%clk 0:03:03]}  Ne4 {[%clk 0:02:06]}
34. Bxe4 {[%clk 0:02:32]}  fxe4 {[%clk 0:02:07]} 35. Nd4 {[%clk 0:02:30]}  Bxd4 {[%clk 0:01:55]} 36. Rxd4 {[%clk 0:02:28]}  Re5 {[%clk 0:01:49]}
37. Ke2 {[%clk 0:02:18]}  c5 {[%clk 0:01:51]} 38. Rd1 {[%clk 0:02:20]}  f5 {[%clk 0:01:50]} 39. g3 {[%clk 0:02:14]}  f4 {[%clk 0:01:49]}
40. gxf4 {[%clk 0:02:10]}  gxf4 {[%clk 0:01:52]} 41. Rg1 {[%clk 0:01:53]}  Kd6 {[%clk 0:01:41]} 42. Rg4 {[%clk 0:01:26]}  Rf5 {[%clk 0:01:43]}
43. b3 {[%clk 0:01:12]}  Kd5 {[%clk 0:01:40]} 44. h4 {[%clk 0:00:50]}  b4 {[%clk 0:01:27]} 45. cxb4 {[%clk 0:00:25]}  axb4 {[%clk 0:01:29]}
46. Rg8 {[%clk 0:00:18]}  Kd4 {[%clk 0:01:10]} 47. Rg1 {[%clk 0:00:07]}  Rh5 {[%clk 0:00:59]} 48. Rg4 {[%clk 0:00:08]}  Rf5 {[%clk 0:00:57]}
49. Kd2 {[%clk 0:00:08]}  Rd5 {[%clk 0:00:52]} 50. Rg8 {[%clk 0:00:05]}  Ke5+ {[%clk 0:00:42]} 51. Ke1 {[%clk 0:00:06]}  Rd3 {[%clk 0:00:39]}
52. Rg5+ {[%clk 0:00:05]}  Kd4 {[%clk 0:00:40]} 53. Rg4 {[%clk 0:00:05]}  Rf3 {[%clk 0:00:29]} 54. h5 {[%clk 0:00:06]}  e3 {[%clk 0:00:28]}
55. h6 {[%clk 0:00:04]}  exf2+ {[%clk 0:00:23]} 56. Kf1 {[%clk 0:00:05]}  Ke3 {[%clk 0:00:24]} 57. Rh4 {[%clk 0:00:05]}  Rg3 {[%clk 0:00:26]}
58. Rh1 {[%clk 0:00:07]}  Rg8 {[%clk 0:00:26]} 59. h7 {[%clk 0:00:03]}  Rh8 {[%clk 0:00:29]} 60. Rh3+ {[%clk 0:00:06]}  f3 {[%clk 0:00:29]}
61. Rh6 {[%clk 0:00:06]}  Rd8 {[%clk 0:00:22]} 62. Re6+ {[%clk 0:00:09]}  Kf4 {[%clk 0:00:20]} 63. Rf6+ {[%clk 0:00:07]}  Kg3 {[%clk 0:00:23]}
64. Rg6+ {[%clk 0:00:09]}  Kf4 {[%clk 0:00:25]} 65. Rf6+ {[%clk 0:00:12]}  Ke4 {[%clk 0:00:23]} 66. Re6+ {[%clk 0:00:11]}  Kf5 {[%clk 0:00:24]}
67. Rh6 {[%clk 0:00:09]}  Rh8 {[%clk 0:00:23]} 68. Kxf2 {[%clk 0:00:10]}  Ke4 {[%clk 0:00:25]} 69. Rh4+ {[%clk 0:00:09]}  Kd3 {[%clk 0:00:26]}
70. Kxf3 {[%clk 0:00:11]}  Kc3 {[%clk 0:00:27]} 71. Ke3 {[%clk 0:00:08]}  Kb2 {[%clk 0:00:30]} 72. Rh2+ {[%clk 0:00:10]}  Kc3 {[%clk 0:00:26]}
73. Ke4 {[%clk 0:00:10]}  c4 {[%clk 0:00:18]} 74. bxc4 {[%clk 0:00:08]}  Kxc4 {[%clk 0:00:20]} 75. Ke5 {[%clk 0:00:09]}  Kb5 {[%clk 0:00:15]}
76. Kf6 {[%clk 0:00:10]} 1-0